fUST/lending_fUST_20250125
["ID","MTS","AMOUNT","RATE_DAILY","PERIOD"]
[350313526,1737783053117,-2424.05,0.00018277,2]
[350313528,1737783053127,-500.0,0.00018277,2]
[350313530,1737783053136,-500.0,0.00018277,2]
[350313532,1737783053146,-881.13,0.00018277,2]
[350313534,1737783053155,-500.0,0.00018277,2]
[350313536,1737783053165,-500.0,0.00018277,2]
[350313538,1737783053174,-2623.3,0.00018277,2]
[350313540,1737783053183,-5048.5,0.00018277,2]
[350313541,1737783053193,-500.0,0.00018277,2]
[350313543,1737783053203,-500.0,0.00018277,2]
[350313546,1737783053214,-2015.43,0.00018277,2]
[350313547,1737783053223,-500.0,0.00018277,2]
[350313549,1737783053233,-500.0,0.00018277,2]
[350313551,1737783053242,-500.0,0.00018277,2]
[350313553,1737783053251,-1631.08,0.00018277,2]
[350313555,1737783053261,-753.24,0.00018277,2]
[350313557,1737783053271,-810.73,0.00018277,2]
[350313559,1737783053280,-601.82,0.00018277,2]
[350313561,1737783053290,-500.0,0.00018277,2]
[350313563,1737783053300,-1029.1,0.00018277,2]
[350313565,1737783053310,-500.0,0.00018277,2]
[350313567,1737783053321,-500.0,0.00018277,2]
[350313569,1737783053331,-2022.49,0.00018277,2]
[350313571,1737783053341,-545.48,0.00018277,2]
[350313573,1737783053351,-500.0,0.00018277,2]
[350313575,1737783053362,-500.0,0.00018277,2]
[350313577,1737783053371,-500.0,0.00018277,2]
[350313579,1737783053381,-8619.28,0.00018277,2]
[350313581,1737783053391,-500.0,0.00018277,2]
[350313583,1737783053401,-500.0,0.00018277,2]
[350313585,1737783053413,-26555.84,0.00018277,2]
[350313587,1737783053425,-500.0,0.00018277,2]
[350313589,1737783053435,-3073.32,0.00018277,2]
[350313591,1737783053445,-832.25,0.00018277,2]
[350313593,1737783053455,-500.0,0.00018277,2]
[350313595,1737783053464,-500.0,0.00018277,2]
[350313597,1737783053474,-3753.59,0.00018277,2]
[350313598,1737783053484,-500.0,0.00018277,2]
[350313599,1737783053494,-1859.87,0.00018277,2]
[350313600,1737783053503,-1711.96,0.00018277,2]
[350313601,1737783053512,-500.0,0.00018277,2]
[350313602,1737783053521,-908.57,0.00018277,2]
[350313603,1737783053530,-581.39,0.00018277,2]
[350313604,1737783053540,-735.83,0.00018277,2]
[350313605,1737783053549,-388.22412401,0.00018277,2]
[350313606,1737783053559,-500.0,0.00018277,2]
[350313607,1737783053570,-1378.74,0.00018277,2]
[350313608,1737783053579,-605.72,0.00018277,2]
[350313609,1737783053591,-500.0,0.00018277,2]
[350313610,1737783053600,-547.67,0.00018277,2]
[350313611,1737783053609,-500.0,0.00018277,2]
[350313612,1737783053618,-500.0,0.00018277,2]
[350313613,1737783053627,-1062.45,0.00018277,2]
[350313614,1737783053636,-500.0,0.00018277,2]
[350313616,1737783053645,-500.0,0.00018277,2]
[350313618,1737783053655,-500.0,0.00018277,2]
[350313620,1737783053664,-500.0,0.00018277,2]
[350313622,1737783053677,-500.0,0.00018277,2]
[350313624,1737783053689,-500.0,0.00018277,2]
[350313626,1737783053699,-2627.06,0.00018277,2]
[350313628,1737783053708,-500.0,0.00018277,2]
[350313630,1737783053717,-500.0,0.00018277,2]
[350313632,1737783053726,-505.15359567,0.00018277,2]
[350313634,1737783053736,-3526.72,0.00018277,2]
[350313636,1737783053746,-1232.6,0.00018277,2]
[350313638,1737783053756,-1205.19,0.00018277,2]
[350313640,1737783053765,-500.0,0.00018277,2]
[350313642,1737783053774,-16989.41,0.00018277,2]
[350313644,1737783053783,-2700.19,0.00018277,2]
[350313646,1737783053792,-500.0,0.00018277,2]
[350313648,1737783053802,-5593.18,0.00018277,2]
[350313650,1737783053816,-500.0,0.00018277,2]
[350313652,1737783053825,-963.98,0.00018277,2]
[350313654,1737783053835,-1368.82,0.00018277,2]
[350313656,1737783053844,-500.0,0.00018277,2]
[350313658,1737783053854,-557.36,0.00018277,2]
[350313660,1737783053864,-150.32742474,0.00018277,2]
[350313662,1737783053873,-500.0,0.00018277,2]
[350313664,1737783053883,-55156.21,0.00018277,2]
[350313666,1737783053893,-500.0,0.00018277,2]
[350313668,1737783053903,-500.0,0.00018277,2]
[350313670,1737783053916,-500.0,0.00018277,2]
[350313672,1737783053925,-611.62,0.00018278,2]
[350313674,1737783053934,-500.0,0.00018278,2]
[350313676,1737783053944,-500.0,0.00018278,2]
[350313678,1737783053954,-500.0,0.00018278,2]
[350313680,1737783053963,-500.0,0.00018278,2]
[350313682,1737783053972,-500.0,0.00018278,2]
[350313684,1737783053981,-500.0,0.00018278,2]
[350313686,1737783053991,-500.0,0.00018278,2]
[350313688,1737783054000,-514.18177375,0.00018278,2]
[350313690,1737783054010,-500.0,0.00018278,2]
[350313692,1737783054019,-500.0,0.00018278,2]
[350313694,1737783054029,-500.0,0.00018278,2]
[350313696,1737783054039,-500.0,0.00018278,2]
[350313698,1737783054049,-500.0,0.00018278,2]
[350313700,1737783054059,-1461.53,0.00018278,2]
[350313702,1737783054074,-500.0,0.00018278,2]
[350313704,1737783054083,-500.0,0.00018278,2]
[350313706,1737783054093,-500.0,0.00018278,2]
[350313708,1737783054102,-500.0,0.00018278,2]
[350313710,1737783054111,-500.0,0.00018278,2]
[350313712,1737783054121,-500.0,0.00018278,2]
[350313714,1737783054130,-500.0,0.00018278,2]
[350313716,1737783054140,-500.0,0.00018278,2]
[350313718,1737783054150,-631.75,0.00018278,2]
[350313720,1737783054159,-630.05,0.00018278,2]
[350313722,1737783054168,-500.0,0.00018278,2]
[350313724,1737783054178,-500.0,0.00018278,2]
[350313726,1737783054188,-770.5,0.00018278,2]
[350313728,1737783054199,-500.0,0.00018278,2]
[350313730,1737783054208,-500.0,0.00018278,2]
[350313733,1737783054218,-500.0,0.00018278,2]
[350313735,1737783054227,-500.0,0.00018278,2]
[350313737,1737783054237,-500.0,0.00018278,2]
[350313739,1737783054247,-500.0,0.00018278,2]
[350313740,1737783054257,-500.0,0.00018278,2]
[350313742,1737783054267,-500.0,0.00018278,2]
[350313744,1737783054276,-538.14272716,0.00018278,2]
[350313746,1737783054285,-232.7153414,0.00018278,2]
[350313748,1737783054294,-500.0,0.00018278,2]
[350313750,1737783054304,-507.73,0.00018278,2]
[350313752,1737783054315,-610.08253619,0.00018278,2]
[350313755,1737783054324,-768.09,0.00018278,2]
[350313757,1737783054334,-500.0,0.00018278,2]
[350313758,1737783054351,-500.0,0.00018278,2]
[350313760,1737783054361,-500.0,0.00018278,2]
[350313762,1737783054371,-500.0,0.00018278,2]
[350313764,1737783054382,-500.0,0.00018278,2]
[350313767,1737783054392,-505.73621809,0.00018278,2]
[350313769,1737783054402,-500.0,0.00018278,2]
[350313771,1737783054412,-750.18,0.00018278,2]
[350313773,1737783054422,-500.0,0.00018278,2]
[350313774,1737783054431,-500.0,0.00018278,2]
[350313776,1737783054441,-500.0,0.00018278,2]
[350313779,1737783054451,-507.38058442,0.00018278,2]
[350313781,1737783054461,-581.05,0.00018278,2]
[350313782,1737783054470,-500.0,0.00018278,2]
[350313784,1737783054480,-500.0,0.00018278,2]
[350313787,1737783054490,-500.0,0.00018278,2]
[350313788,1737783054499,-500.0,0.00018278,2]
[350313790,1737783054508,-450.44810997,0.00018278,2]
[350313793,1737783054518,-500.0,0.00018278,2]
[350313795,1737783054528,-500.0,0.00018278,2]
[350313797,1737783054537,-500.0,0.00018278,2]
[350313798,1737783054548,-506.67,0.00018278,2]
[350313801,1737783054558,-852.39,0.00018278,2]
[350313802,1737783054569,-758.84,0.00018278,2]
[350313805,1737783054578,-500.0,0.00018278,2]
[350313806,1737783054590,-500.0,0.00018278,2]
[350313808,1737783054601,-500.0,0.00018278,2]
[350313810,1737783054611,-500.0,0.00018278,2]
[350313812,1737783054620,-500.0,0.00018278,2]
[350313823,1737783054631,-500.0,0.00018278,2]
[350313825,1737783054724,-500.0,0.00018278,2]
[350313827,1737783054734,-402.45424366,0.00018278,2]
[350313829,1737783054743,-500.0,0.00018278,2]
[350313831,1737783054753,-500.0,0.00018278,2]
[350313833,1737783054762,-500.0,0.00018278,2]
[350313835,1737783054771,-500.0,0.00018278,2]
[350313837,1737783054780,-3068.28,0.00018278,2]
[350313839,1737783054789,-500.0,0.00018278,2]
[350313841,1737783054805,-500.0,0.00018278,2]
[350313843,1737783054820,-1339.02,0.00018278,2]
[350313845,1737783054830,-500.0,0.00018278,2]
[350313847,1737783054839,-853.96,0.00018278,2]
[350313849,1737783054848,-500.0,0.00018278,2]
[350313851,1737783054857,-500.0,0.00018278,2]
[350313852,1737783054867,-500.0,0.00018278,2]
[350313855,1737783054877,-500.0,0.00018278,2]
[350313856,1737783054886,-500.0,0.00018278,2]
[350313858,1737783054896,-17828.12,0.00018278,2]
[350313861,1737783054905,-500.0,0.00018278,2]
[350313863,1737783054915,-500.0,0.00018278,2]
[350313864,1737783054924,-1577.34,0.00018278,2]
[350313867,1737783054934,-357.3774422,0.00018278,2]
[350313869,1737783054944,-500.0,0.00018278,2]
[350313871,1737783054954,-500.0,0.00018278,2]
[350313873,1737783054964,-500.0,0.00018278,2]
[350313875,1737783054972,-500.0,0.00018278,2]
[350313877,1737783054981,-500.0,0.00018278,2]
[350313879,1737783054991,-500.0,0.00018278,2]
[350313881,1737783055000,-1117.98,0.00018278,2]
[350313883,1737783055010,-500.0,0.00018278,2]
[350313885,1737783055020,-500.0,0.00018278,2]
[350313887,1737783055029,-500.0,0.00018278,2]
[350313889,1737783055039,-500.0,0.00018278,2]
[350313891,1737783055048,-636.46,0.00018278,2]
[350313893,1737783055057,-500.0,0.00018278,2]
[350313895,1737783055068,-500.0,0.00018278,2]
[350313897,1737783055077,-500.0,0.00018278,2]
[350313899,1737783055087,-500.0,0.00018278,2]
[350313901,1737783055097,-500.0,0.00018278,2]
[350313903,1737783055107,-3000.0,0.0001828,2]
[350313905,1737783055116,-3000.0,0.0001829,2]
[350313907,1737783055125,-3000.0,0.000183,2]
[350313909,1737783055135,-3000.0,0.0001831,2]
[350313911,1737783055144,-12077.80634443,0.00018314,2]
[350313913,1737783055154,-3000.0,0.0001832,2]
[350313915,1737783055163,-153.0,0.00018323,2]
[350313917,1737783055172,-187.147,0.00018323,2]
[350313919,1737783055182,-3000.0,0.0001833,2]
[350313921,1737783055191,-3000.0,0.0001834,2]
[350313923,1737783055201,-3000.0,0.0001835,2]
[350313925,1737783055210,-3000.0,0.0001836,2]
[350313927,1737783055219,-3000.0,0.0001837,2]
[350313929,1737783055228,-500.0,0.00018374,2]
[350313931,1737783055238,-500.0,0.00018374,2]
[350313933,1737783055247,-500.0,0.00018374,2]
[350313935,1737783055257,-500.0,0.00018374,2]
[350313937,1737783055266,-857.53,0.00018374,2]
[350313939,1737783055276,-1044.19,0.00018374,2]
[350313941,1737783055285,-500.0,0.00018374,2]
[350313943,1737783055295,-669.43,0.00018374,2]
[350313945,1737783055305,-517.15,0.00018374,2]
[350313947,1737783055317,-500.0,0.00018374,2]
[350313949,1737783055326,-605.47,0.00018374,2]
[350313951,1737783055335,-2093.17,0.00018374,2]
[350313953,1737783055345,-500.0,0.00018374,2]
[350313955,1737783055354,-500.0,0.00018374,2]
[350313957,1737783055363,-500.0,0.00018374,2]
[350313959,1737783055372,-500.0,0.00018374,2]
[350313961,1737783055383,-2020.91,0.00018374,2]
[350313963,1737783055392,-795.29,0.00018374,2]
[350313965,1737783055401,-500.0,0.00018374,2]
[350313967,1737783055410,-1094.93,0.00018374,2]
[350313969,1737783055419,-840.25,0.00018374,2]
[350313971,1737783055429,-531.92762221,0.00018374,2]
[350313973,1737783055439,-1024.29,0.00018374,2]
[350313975,1737783055448,-657.08,0.00018374,2]
[350313977,1737783055458,-1927.15,0.00018374,2]
[350313979,1737783055471,-500.0,0.00018374,2]
[350313982,1737783055491,-500.0,0.00018374,2]
[350313985,1737783055505,-500.0,0.00018374,2]
[350313988,1737783055522,-500.0,0.00018374,2]
[350313991,1737783055540,-500.0,0.00018374,2]
[350313994,1737783055557,-508.55,0.00018374,2]
[350313997,1737783055576,-500.0,0.00018374,2]
[350313999,1737783055592,-500.0,0.00018374,2]
[350314002,1737783055609,-1017.92,0.00018374,2]
[350314004,1737783055624,-500.0,0.00018374,2]
[350314007,1737783055638,-500.0,0.00018374,2]
[350314009,1737783055652,-500.0,0.00018374,2]
[350314012,1737783055670,-500.0,0.00018374,2]
[350314015,1737783055687,-500.0,0.00018374,2]
[350314018,1737783055703,-2934.14,0.00018374,2]
[350314020,1737783055715,-500.0,0.00018376,2]
[350314023,1737783055729,-616.12,0.00018376,2]
[350314025,1737783055746,-500.0,0.00018376,2]
[350314028,1737783055759,-511.58,0.00018376,2]
[350314030,1737783055773,-500.0,0.00018376,2]
[350314033,1737783055785,-500.0,0.00018376,2]
[350314035,1737783055798,-912.18,0.00018376,2]
[350314037,1737783055811,-816.96,0.00018376,2]
[350314040,1737783055825,-500.0,0.00018376,2]
[350314042,1737783055838,-500.0,0.00018376,2]
[350314045,1737783055852,-500.0,0.00018376,2]
[350314047,1737783055865,-3000.0,0.0001838,2]
[350314050,1737783055879,-500.0,0.00018387,2]
[350314052,1737783055893,-500.0,0.00018387,2]
[350314054,1737783055906,-603.31355436,0.00018387,2]
[350314057,1737783055919,-802.54355689,0.00018387,2]
[350314059,1737783055933,-577.41819929,0.00018387,2]
[350314062,1737783055946,-551.54466467,0.00018387,2]
[350314064,1737783055959,-168.83123781,0.00018387,2]
[350314067,1737783055972,-3000.0,0.0001839,2]
[350314069,1737783055985,-3000.0,0.000184,2]
[350314071,1737783055999,-3000.0,0.0001841,2]
[350314074,1737783056012,-500.0,0.00018413,2]
[350314076,1737783056025,-787.0,0.00018413,2]
[350314079,1737783056038,-3715.07,0.00018413,2]
[350314081,1737783056051,-1000.0,0.00018413,7]
[350314083,1737783056065,-512.07741734,0.00018413,2]
[350314086,1737783056078,-1539.86,0.00018413,2]
[350314088,1737783056091,-500.0,0.00018413,2]
[350314090,1737783056104,-500.81,0.00018413,2]
[350314093,1737783056117,-500.0,0.00018413,2]
[350314095,1737783056132,-500.0,0.00018413,2]
[350314098,1737783056145,-505.46,0.00018413,2]
[350314100,1737783056159,-500.0,0.00018414,2]
[350314103,1737783056172,-544.2,0.00018414,2]
[350314105,1737783056185,-500.0,0.00018414,2]
[350314108,1737783056198,-500.0,0.00018414,2]
[350314110,1737783056211,-1052.84,0.00018414,2]
[350314113,1737783056225,-500.0,0.00018414,2]
[350314115,1737783056240,-500.0,0.00018414,2]
[350314118,1737783056254,-654.95,0.00018414,2]
[350314120,1737783056267,-546.02,0.00018414,2]
[350314123,1737783056280,-1282.17,0.00018414,2]
[350314125,1737783056293,-828.62,0.00018414,2]
[350314127,1737783056306,-500.0,0.00018414,2]
[350314129,1737783056320,-918.14,0.00018414,2]
[350314132,1737783056334,-500.0,0.00018414,2]
[350314134,1737783056348,-787.76,0.00018414,2]
[350314137,1737783056361,-500.0,0.00018414,2]
[350314139,1737783056375,-871.44,0.00018414,2]
[350314141,1737783056389,-500.0,0.00018414,2]
[350314144,1737783056404,-716.58,0.00018414,2]
[350314146,1737783056417,-500.0,0.00018414,2]
[350314149,1737783056430,-500.0,0.00018414,2]
[350314151,1737783056444,-500.0,0.00018414,2]
[350314154,1737783056457,-616.39,0.00018414,2]
[350314156,1737783056470,-500.0,0.00018414,2]
[350314158,1737783056484,-1219.8,0.00018414,2]
[350314161,1737783056498,-985.76,0.00018414,2]
[350314163,1737783056511,-500.0,0.00018414,2]
[350314165,1737783056520,-500.0,0.00018414,2]
[350314182,1737783056666,-1865.78,0.00018414,2]
[350314184,1737783056684,-2424.05,0.00018414,2]
[350314186,1737783056693,-500.0,0.00018414,2]
[350314188,1737783056703,-500.0,0.00018414,2]
[350314190,1737783056712,-881.13,0.00018414,2]
[350314192,1737783056721,-500.0,0.00018414,2]
[350314194,1737783056731,-500.0,0.00018414,2]
[350314196,1737783056740,-2623.3,0.00018414,2]
[350314198,1737783056749,-5048.5,0.00018414,2]
[350314200,1737783056760,-290.30644607,0.00018414,2]
[350314202,1737783056770,-500.0,0.00018414,2]
[350314204,1737783056779,-2015.43,0.00018414,2]
[350314206,1737783056789,-500.0,0.00018414,2]
[350314208,1737783056798,-500.0,0.00018414,2]
[350314210,1737783056807,-500.0,0.00018414,2]
[350314213,1737783056818,-1631.08,0.00018414,2]
[350314214,1737783056828,-753.24,0.00018414,2]
[350314217,1737783056837,-810.73,0.00018414,2]
[350314218,1737783056847,-601.82,0.00018414,2]
[350314220,1737783056858,-500.0,0.00018414,2]
[350314223,1737783056868,-1029.1,0.00018414,2]
[350314225,1737783056878,-500.0,0.00018414,2]
[350314227,1737783056888,-500.0,0.00018414,2]
[350314228,1737783056898,-2022.49,0.00018414,2]
[350314231,1737783056908,-545.48,0.00018414,2]
[350314232,1737783056918,-500.0,0.00018414,2]
[350314234,1737783056927,-500.0,0.00018414,2]
[350314237,1737783056938,-500.0,0.00018414,2]
[350314239,1737783056948,-8619.28,0.00018414,2]
[350314241,1737783056958,-500.0,0.00018414,2]
[350314242,1737783056967,-500.0,0.00018414,2]
[350314244,1737783056977,-24557.03129166,0.00018414,2]
[350314254,1737783057161,-1998.80870834,0.00018414,2]
[350314255,1737783057171,-500.0,0.00018414,2]
[350314256,1737783057180,-3073.32,0.00018414,2]
[350314257,1737783057189,-832.25,0.00018414,2]
[350314258,1737783057198,-500.0,0.00018414,2]
[350314260,1737783057208,-500.0,0.00018414,2]
[350314262,1737783057217,-3753.59,0.00018414,2]
[350314264,1737783057227,-500.0,0.00018414,2]
[350314266,1737783057236,-1859.87,0.00018414,2]
[350314268,1737783057245,-1711.96,0.00018414,2]
[350314271,1737783057255,-500.0,0.00018414,2]
[350314272,1737783057264,-595.12717423,0.00018414,2]
[350314331,1737783057820,-500.0,0.00017866,2]
[350314333,1737783057830,-1239.26615875,0.00017866,2]
[350314335,1737783057841,-492.20384125,0.00017866,2]
[350314337,1737783057850,-500.0,0.00018003,2]
[350314339,1737783057860,-1731.47,0.00018003,2]
[350314341,1737783057870,-500.0,0.0001814,2]
[350314343,1737783057879,-452.86510208,0.00018277,2]
[350314345,1737783057889,-402.04322767,0.00018387,2]
[350314348,1737783057901,-97.95677233,0.00018387,2]
[350314350,1737783057911,-313.44282577,0.00018414,2]
[350314351,1737783057920,-581.39,0.00018414,2]
[350314354,1737783057930,-735.83,0.00018414,2]
[350314355,1737783057940,-223.08024056,0.00018414,2]
[350314357,1737783057950,-1378.74,0.00018414,2]
[350314360,1737783057959,-605.72,0.00018414,2]
[350314362,1737783057969,-500.0,0.00018414,2]
[350314363,1737783057977,-547.67,0.00018414,2]
[350314365,1737783057986,-500.0,0.00018414,2]
[350314368,1737783057996,-500.0,0.00018414,2]
[350314369,1737783058005,-1062.45,0.00018414,2]
[350314372,1737783058015,-500.0,0.00018414,2]
[350314373,1737783058025,-518.32989342,0.00018414,2]
[350314375,1737783058035,-500.0,0.00018414,2]
[350314377,1737783058045,-500.0,0.00018414,2]
[350314379,1737783058056,-500.0,0.00018414,2]
[350314382,1737783058067,-500.0,0.00018414,2]
[350314383,1737783058076,-2627.06,0.00018414,2]
[350314385,1737783058086,-500.0,0.00018414,2]
[350314387,1737783058095,-500.0,0.00018414,2]
[350314389,1737783058104,-2534.96480868,0.00018414,2]
[350314396,1737783058156,-1731.47,0.0001814,2]
[350314398,1737783058166,-26.68974404,0.00018277,2]
[350314405,1737783058220,-151.0,0.00017866,2]
[350314407,1737783058230,-151.0,0.00017866,2]
[350314409,1737783058239,-303.0,0.000181,2]
[350314412,1737783058257,-151.0,0.00017866,2]
[350314414,1737783058267,-51.0685108,0.000181,2]
[350314416,1737783058276,-1704.78025596,0.00018277,2]
[350314418,1737783058286,-991.75519132,0.00018414,2]
[350314420,1737783058297,-20.71344601,0.00018414,2]
[350314422,1737783058308,-394.0,0.00018414,2]
[350315310,1737783067368,283.101443,0.00017146,2]
[350315978,1737783166348,248.465,0.0001749,2]
[350315979,1737783329642,1291.255183,0.00017,2]
[350315981,1737783392513,159.854449,0.00013973,2]
[350315982,1737783403906,500.0,0.00016164,2]
[350315983,1737783592143,274.078232,0.00016863,2]
[350315984,1737783680055,1110.89,0.000176,2]
[350315986,1737783811625,237.884,0.0001749,2]
[350315987,1737783818652,16003.5413875,0.00016862,2]
[350315988,1737783885974,199.0,0.000176,2]
[350316012,1737784232779,-300.0,0.00017858,2]
[350316014,1737784232789,-500.0,0.00017858,2]
[350316016,1737784232798,-500.0,0.00017859,2]
[350316018,1737784232807,-577.72,0.00017859,2]
[350316020,1737784232817,-511.20860193,0.00017859,2]
[350316022,1737784232826,-500.0,0.00017859,2]
[350316024,1737784232837,-500.0,0.00017859,2]
[350316026,1737784232846,-500.0,0.00017859,2]
[350316027,1737784232856,-500.0,0.00017859,2]
[350316028,1737784232865,-500.0,0.00017859,2]
[350316029,1737784232875,-500.0,0.00017859,2]
[350316030,1737784232885,-500.0,0.00017859,2]
[350316031,1737784232895,-500.0,0.00017859,2]
[350316032,1737784232904,-500.0,0.00017859,2]
[350316033,1737784232914,-500.0,0.00017859,2]
[350316034,1737784232924,-500.0,0.00017859,2]
[350316035,1737784232933,-500.0,0.00017859,2]
[350316036,1737784232943,-1299.83,0.00017859,2]
[350316037,1737784232953,-500.0,0.00017859,2]
[350316038,1737784232963,-501.80510314,0.00017859,2]
[350316039,1737784232972,-162.79946272,0.00017859,2]
[350316040,1737784232982,-500.0,0.00017859,2]
[350316041,1737784232991,-500.0,0.00017859,2]
[350316042,1737784233000,-500.0,0.00017859,2]
[350316043,1737784233010,-500.0,0.00017859,2]
[350316044,1737784233020,-500.0,0.00017859,2]
[350316045,1737784233029,-500.0,0.00017859,2]
[350316046,1737784233039,-500.0,0.00017859,2]
[350316047,1737784233049,-500.0,0.00017859,2]
[350316048,1737784233059,-500.0,0.00017859,2]
[350316049,1737784233069,-557.73189083,0.00017859,2]
[350316050,1737784233078,-500.0,0.00017859,2]
[350316051,1737784233088,-500.0,0.00017859,2]
[350316052,1737784233098,-489.26762352,0.00017859,2]
[350316053,1737784233108,-500.0,0.00017859,2]
[350316054,1737784233118,-500.0,0.00017859,2]
[350316055,1737784233128,-500.0,0.00017859,2]
[350316056,1737784233138,-500.0,0.00017859,2]
[350316057,1737784233152,-500.0,0.00017859,2]
[350316058,1737784233162,-500.0,0.00017859,2]
[350316059,1737784233171,-500.0,0.00017859,2]
[350316060,1737784233181,-500.0,0.00017859,2]
[350316061,1737784233191,-500.0,0.00017859,2]
[350316062,1737784233201,-500.0,0.00017859,2]
[350316063,1737784233211,-500.0,0.00017859,2]
[350316064,1737784233221,-500.0,0.00017859,2]
[350316065,1737784233230,-500.0,0.00017859,2]
[350316066,1737784233240,-500.0,0.00017859,2]
[350316067,1737784233249,-500.0,0.00017859,2]
[350316068,1737784233258,-500.0,0.00017859,2]
[350316069,1737784233267,-500.0,0.00017859,2]
[350316070,1737784233277,-24.62988695,0.00017859,2]
[350316071,1737784233320,-475.37011305,0.00017859,2]
[350316072,1737784233330,-500.0,0.00017859,2]
[350316073,1737784233340,-500.0,0.00017859,2]
[350316074,1737784233349,-500.0,0.00017859,2]
[350316075,1737784233360,-500.0,0.00017859,2]
[350316076,1737784233369,-207.57645384,0.00017859,2]
[350316077,1737784233379,-500.0,0.00017859,2]
[350316078,1737784233389,-500.0,0.00017859,2]
[350316079,1737784233399,-500.0,0.00017859,2]
[350316080,1737784233409,-500.0,0.00017859,2]
[350316081,1737784233419,-515.580798,0.00017859,2]
[350316082,1737784233429,-89.75088174,0.00017859,2]
[350316111,1737784240359,-410.24911826,0.00017859,2]
[350316112,1737784240367,-500.0,0.00017859,2]
[350316113,1737784240376,-500.0,0.00017859,2]
[350316114,1737784240384,-500.0,0.00017859,2]
[350316115,1737784240392,-500.0,0.00017859,2]
[350316116,1737784240399,-500.0,0.00017859,2]
[350316117,1737784240406,-500.0,0.00017859,2]
[350316118,1737784240414,-500.0,0.00017859,2]
[350316119,1737784240421,-500.0,0.00017859,2]
[350316120,1737784240428,-500.0,0.00017859,2]
[350316121,1737784240435,-2941.09,0.00017859,2]
[350316122,1737784240444,-623.04,0.00017859,2]
[350316123,1737784240454,-500.0,0.00017859,2]
[350316125,1737784240461,-1000.0,0.00017859,7]
[350316126,1737784240468,-500.0,0.00017859,2]
[350316127,1737784240475,-1219.05,0.00017859,2]
[350316128,1737784240482,-1715.41,0.00017859,2]
[350316129,1737784240489,-500.0,0.00017859,2]
[350316130,1737784240496,-500.0,0.00017859,2]
[350316131,1737784240504,-500.0,0.00017859,2]
[350316132,1737784240512,-500.0,0.00017859,2]
[350316133,1737784240520,-500.0,0.00017859,2]
[350316134,1737784240528,-500.0,0.00017859,2]
[350316135,1737784240536,-3996.73,0.00017859,2]
[350316136,1737784240543,-641.83,0.00017859,2]
[350316137,1737784240551,-547.29,0.00017859,2]
[350316138,1737784240559,-545.87,0.00017859,2]
[350316139,1737784240566,-500.0,0.00017859,2]
[350316140,1737784240574,-6823.59,0.0001786,2]
[350316141,1737784240580,-500.0,0.0001786,2]
[350316142,1737784240588,-2971.59,0.0001786,2]
[350316143,1737784240596,-2433.05,0.0001786,2]
[350316144,1737784240603,-582.54,0.0001786,2]
[350316145,1737784240610,-500.0,0.0001786,2]